fUSD/lending_fUSD_20251108
["ID","MTS","AMOUNT","RATE_DAILY","PERIOD"]
[393383811,1762560164195,375.69,0.00013699,2]
[393383812,1762560427492,163.0,0.0003,120]
[393383821,1762560631706,-178.0,0.0001591,2]
[393383822,1762560631716,-250.0,0.0001591,2]
[393383823,1762560631726,-195.0,0.0001591,2]
[393383824,1762560631737,-156.3,0.0001591,2]
[393383825,1762560631747,-195.0,0.00016373,2]
[393383826,1762560631757,-936.98,0.00016438,2]
[393383827,1762560631767,-500.0,0.00016599,2]
[393383828,1762560631777,-1256.0,0.00016995,2]
[393383829,1762560631787,-450.74832763,0.00017006,2]
[393383830,1762560631797,-1739.5898,0.00017199,2]
[393383831,1762560631807,-234.3744,0.00017199,2]
[393383832,1762560631817,-300.0,0.00017205,2]
[393383833,1762560631826,-300.0,0.00017205,2]
[393383834,1762560631836,-1200.0,0.00017205,2]
[393383835,1762560631846,-1717.57011478,0.00017207,2]
[393383836,1762560631856,-176.40476807,0.00017207,2]
[393383837,1762560631866,-3589.76563905,0.00017207,2]
[393383838,1762560631876,-183.67669288,0.00017207,2]
[393383839,1762560631886,-999.0,0.0001727,3]
[393383840,1762560631897,-433.0,0.00017272,2]
[393383841,1762560631907,-500.0,0.00017273,2]
[393383842,1762560631918,-500.0,0.00017273,2]
[393383843,1762560631928,-500.0,0.00017273,2]
[393383844,1762560631937,-500.0,0.00017273,2]
[393383845,1762560631947,-500.0,0.00017273,2]
[393383847,1762560631957,-506.43722381,0.00017273,2]
[393383849,1762560631967,-616.41569441,0.00017273,2]
[393383884,1762560632234,-486.35532093,0.00017273,2]
[393383887,1762560632246,-500.0,0.00017273,2]
[393383889,1762560632255,-179.89,0.00017289,2]
[393383891,1762560632265,-179.89,0.00017289,2]
[393383893,1762560632275,-500.0,0.00017298,2]
[393383895,1762560632284,-500.0,0.00017298,2]
[393383897,1762560632293,-500.0,0.00017298,2]
[393383899,1762560632307,-500.0,0.00017298,2]
[393383901,1762560632316,-500.0,0.00017298,2]
[393383903,1762560632326,-204.70622116,0.00017298,2]
[393383905,1762560632335,-500.0,0.00017298,2]
[393383908,1762560632345,-500.0,0.00017298,2]
[393383910,1762560632355,-500.0,0.00017298,2]
[393383912,1762560632365,-500.0,0.00017298,2]
[393383914,1762560632374,-138752.4884512,0.00017299,2]
[393383916,1762560632386,-27033.64003937,0.00017299,2]
[393383919,1762560632402,-3852.80913858,0.00017299,2]
[393383921,1762560632414,-1115.5,0.00017299,2]
[393383954,1762560637543,-29872.335078,0.00017299,2]
[393383955,1762560637555,-12475.47394129,0.00017299,2]
[393383956,1762560637566,-1035.8676,0.00017299,2]
[393383969,1762560639808,-1792.21711365,0.00017299,2]
[393383970,1762560639820,-3229.77568671,0.00017299,2]
[393383974,1762560642784,-200839.8929512,0.00017299,2]
[393383975,1762560642794,-555.0,0.00017307,2]
[393383976,1762560642805,-200.0,0.00017501,2]
[393383977,1762560642815,-1930.56073933,0.00017501,2]
[393383978,1762560642826,-195.0,0.00017501,2]
[393383979,1762560642836,-300.0,0.00017501,2]
[393383980,1762560642847,-300.0,0.00017501,2]
[393383981,1762560642856,-250.0,0.00017501,2]
[393383982,1762560642866,-300.0,0.00017501,2]
[393383983,1762560642876,-300.0,0.00017501,2]
[393383984,1762560642886,-555.0,0.00017505,2]
[393383985,1762560642895,-179.89,0.00017515,2]
[393383986,1762560642906,-555.0,0.00017525,2]
[393383987,1762560642917,-555.0,0.00017535,2]
[393383988,1762560642927,-156.3,0.00017585,2]
[393383989,1762560642938,-555.0,0.00017664,2]
[393383990,1762560642956,-2142.0,0.0001767,2]
[393383991,1762560642966,-6659.0,0.0001767,2]
[393383992,1762560642975,-6476.0,0.0001767,2]
[393383993,1762560642986,-277.194,0.0001767,2]
[393383994,1762560642996,-555.0,0.00017705,2]
[393383995,1762560643006,-166.66,0.0001773,2]
[393383996,1762560643016,-555.0,0.00017791,2]
[393383997,1762560643025,-555.0,0.00017794,2]
[393383998,1762560643035,-555.0,0.0001791,2]
[393383999,1762560643045,-555.0,0.00017918,2]
[393384000,1762560643055,-555.0,0.00017981,2]
[393384001,1762560643065,-200.51355,0.00018,2]
[393384002,1762560643075,-500.0,0.00018068,2]
[393384003,1762560643085,-416.0,0.00018068,2]
[393384004,1762560643095,-698.68,0.00018068,2]
[393384005,1762560643104,-477.21,0.00018068,2]
[393384006,1762560643115,-477.21,0.00018068,2]
[393384008,1762560643125,-477.21,0.00018068,2]
[393384009,1762560643135,-150.0,0.000181,2]
[393384010,1762560643145,-150.0,0.000181,2]
[393384011,1762560643154,-150.0,0.000181,2]
[393384013,1762560643164,-150.0,0.000181,2]
[393384015,1762560643174,-150.059,0.000181,2]
[393384017,1762560643184,-150.0,0.000181,2]
[393384018,1762560643194,-150.0,0.000181,2]
[393384019,1762560643203,-574.0,0.000181,2]
[393384020,1762560643213,-607.0,0.000181,2]
[393384021,1762560643223,-1316.0,0.000181,2]
[393384022,1762560643233,-3424.0,0.000181,2]
[393384023,1762560643242,-820.0,0.000181,2]
[393384024,1762560643252,-1596.0,0.000181,2]
[393384025,1762560643262,-1273.0,0.000181,2]
[393384026,1762560643272,-812.0,0.000181,2]
[393384027,1762560643282,-150.0,0.000181,2]
[393384028,1762560643292,-150.0,0.000181,2]
[393384029,1762560643301,-218.7,0.000181,2]
[393384030,1762560643311,-3097.0,0.00018111,2]
[393384031,1762560643320,-555.0,0.00018149,2]
[393384032,1762560643330,-288.71264737,0.00018164,2]
[393384033,1762560643340,-555.0,0.00018171,2]
[393384034,1762560643349,-500.0,0.00018205,2]
[393384035,1762560643359,-416.0,0.00018205,2]
[393384036,1762560643368,-150.0,0.00018237,2]
[393384037,1762560643378,-150.0,0.00018237,2]
[393384038,1762560643388,-555.0,0.0001827,2]
[393384039,1762560643398,-555.0,0.0001832,2]
[393384040,1762560643407,-500.0,0.00018342,2]
[393384041,1762560643417,-416.0,0.00018342,2]
[393384042,1762560643426,-217.38593386,0.00018374,2]
[393384043,1762560643436,-223.8224773,0.00018374,2]
[393384044,1762560643445,-555.0,0.00018422,2]
[393384045,1762560643455,-166.66,0.00018462,2]
[393384046,1762560643465,-500.0,0.00018479,2]
[393384047,1762560643475,-416.0,0.00018479,2]
[393384048,1762560643484,-150.99,0.00018533,2]
[393384049,1762560643493,-9184.65,0.00018533,2]
[393384050,1762560643503,-1537.76,0.00018533,2]
[393384051,1762560643512,-555.0,0.00018589,2]
[393384052,1762560643522,-500.0,0.00018616,2]
[393384053,1762560643531,-416.0,0.00018616,2]
[393384054,1762560643541,-555.0,0.00018631,2]
[393384055,1762560643551,-555.0,0.00018652,2]
[393384056,1762560643560,-288.71264737,0.00018655,2]
[393384057,1762560643570,-555.0,0.00018658,2]
[393384058,1762560643580,-555.0,0.00018713,2]
[393384059,1762560643590,-893.85465609,0.00018748,2]
[393384060,1762560643599,-500.0,0.00018753,2]
[393384061,1762560643609,-416.0,0.00018753,2]
[393384062,1762560643621,-420.0,0.00018788,2]
[393384063,1762560643630,-221.84453216,0.00018788,2]
[393384064,1762560643640,-555.0,0.00018806,2]
[393384065,1762560643650,-1534.03075,0.0001881,2]
[393384066,1762560643661,-3589.76563904,0.00018843,2]
[393384067,1762560643671,-4803.3073,0.00018852,2]
[393384068,1762560643681,-1680.0,0.00018881,2]
[393384069,1762560643691,-500.0,0.0001889,2]
[393384070,1762560643703,-416.0,0.0001889,2]
[393384071,1762560643713,-1534.03075,0.0001892,2]
[393384072,1762560643723,-150.0,0.00018926,2]
[393384073,1762560643733,-1289.81690015,0.00018926,2]
[393384074,1762560643743,-150.0,0.00018926,2]
[393384075,1762560643753,-2982.86560419,0.00018926,2]
[393384076,1762560643763,-150.0,0.00018926,2]
[393384077,1762560643773,-2370.91853627,0.00018926,2]
[393384078,1762560643782,-179.89,0.00018963,2]
[393384079,1762560643792,-514.60520456,0.00018973,2]
[393384080,1762560643801,-500.0,0.00018973,2]
[393384081,1762560643811,-500.0,0.00018973,2]
[393384082,1762560643821,-373.81755517,0.00018973,2]
[393384083,1762560643831,-560.77369819,0.00018973,2]
[393384084,1762560643841,-5564.8522814,0.00018989,2]
[393384085,1762560643850,-179.89,0.0001899,2]
[393384086,1762560643860,-1309.4983609,0.00018993,2]
[393384087,1762560643870,-177231.29711712,0.00019,2]
[393384088,1762560643880,-2087.12647291,0.00019,2]
[393384089,1762560643890,-151.0,0.00019,2]
[393384090,1762560643900,-151.0,0.00019,2]
[393384091,1762560643910,-10824.55834566,0.00019017,5]
[393384092,1762560643919,-205.28239564,0.00019024,2]
[393384093,1762560643930,-500.0,0.00019027,2]
[393384094,1762560643940,-416.0,0.00019027,2]
[393384095,1762560643950,-555.0,0.00019049,2]
[393384096,1762560643960,-1717.57011475,0.00019062,2]
[393384097,1762560643970,-555.0,0.00019096,2]
[393384098,1762560643980,-555.0,0.000191,2]
[393384099,1762560643990,-288.71264737,0.00019145,2]
[393384100,1762560644000,-1534.03075,0.0001916,2]
[393384101,1762560644009,-500.0,0.00019164,2]
[393384102,1762560644019,-416.0,0.00019164,2]
[393384103,1762560644030,-2299.12,0.00019178,2]
[393384104,1762560644043,-166.66,0.00019193,2]
[393384105,1762560644054,-1335.0,0.000193,4]
[393384106,1762560644064,-500.0,0.00019301,2]
[393384107,1762560644075,-416.0,0.00019301,2]
[393384108,1762560644085,-477.99034883,0.00019348,2]
[393384109,1762560644095,-1534.03076,0.0001942,2]
[393384110,1762560644106,-500.0,0.00019438,2]
[393384111,1762560644116,-416.0,0.00019438,2]
[393384112,1762560644126,-1000.0,0.00019438,2]
[393384113,1762560644136,-1087.9034712,0.00019521,2]
[393384114,1762560644147,-1000.0,0.00019521,2]
[393384115,1762560644158,-500.0,0.00019575,2]
[393384116,1762560644168,-416.0,0.00019575,2]
[393384117,1762560644178,-233.38,0.00019594,2]
[393384118,1762560644188,-288.71264737,0.00019636,2]
[393384119,1762560644198,-1534.03075,0.0001966,2]
[393384120,1762560644207,-2410.6,0.00019697,2]
[393384121,1762560644217,-1000.0,0.000197,2]
[393384122,1762560644227,-500.0,0.00019712,2]
[393384123,1762560644237,-416.0,0.00019712,2]
[393384124,1762560644247,-300.0,0.00019765,2]
[393384125,1762560644256,-300.0,0.000198,7]
[393384126,1762560644445,-500.0,0.00019849,2]
[393384127,1762560644459,-416.0,0.00019849,2]
[393384128,1762560644469,-4874.77299672,0.000199,3]
[393384129,1762560644479,-165.22456248,0.000199,2]
[393384130,1762560644490,-600.0,0.000199,7]
[393384131,1762560644500,-166.67,0.00019908,2]
[393384132,1762560644510,-1534.03075,0.0001991,2]
[393384133,1762560644520,-166.66,0.00019925,2]
[393384134,1762560644530,-109264.24556484,0.0001995,15]
[393384135,1762560644540,-500.0,0.00019986,2]
[393384136,1762560644551,-416.0,0.00019986,2]
[393384137,1762560644561,-150.11,0.0001999,2]
[393384138,1762560644571,-150.11,0.0001999,2]
[393384139,1762560644580,-150.11,0.0001999,2]
[393384140,1762560644591,-150.11,0.0001999,2]
[393384141,1762560644601,-325.86314195,0.00019999,2]
[393384142,1762560644612,-290.89757424,0.00019999,2]
[393384143,1762560644624,-433.08510782,0.00019999,2]
[393384144,1762560644634,-500.0,0.00019999,2]
[393384145,1762560644644,-10820.30702064,0.0002,2]
[393384146,1762560644654,-1519.51893016,0.0002,2]
[393384147,1762560644665,-25361.98694477,0.0002,2]
[393384148,1762560644675,-180379.71891958,0.0002,5]
[393384149,1762560644685,-8300.0,0.0002,4]
[393384150,1762560644694,-3950.0,0.0002,2]
[393384151,1762560644706,-2048.58691759,0.0002,14]
[393384152,1762560644717,-7225.11979424,0.0002,2]
[393384153,1762560644726,-1283.0616566,0.0002,2]
[393384154,1762560644736,-7310.04820368,0.0002,2]
[393384155,1762560644745,-2168.59057824,0.0002,3]
[393384156,1762560644754,-10163.70752487,0.0002,2]
[393384157,1762560644765,-1035.63503276,0.0002,2]
[393384158,1762560644775,-2838.06808516,0.0002,2]
[393384159,1762560644784,-8731.3976056,0.0002,2]
[393384160,1762560644795,-9157.0,0.0002,7]
[393384161,1762560644806,-300.0,0.0002,2]
[393384162,1762560644815,-395.0,0.0002,2]
[393384163,1762560644825,-251.25430112,0.0002,20]
[393384164,1762560644834,-203.84,0.0002,2]
[393384165,1762560644844,-52638.20511616,0.0002,3]
[393384166,1762560644854,-264.99360849,0.0002,7]
[393384167,1762560644863,-477.99034883,0.0002,3]
[393384168,1762560644874,-1451.48981828,0.0002,5]
[393384169,1762560644883,-23502.25731252,0.0002,5]
[393384170,1762560645902,-349.87046341,0.0002,5]
[393384171,1762560645915,-308.52858885,0.0002,5]
[393384172,1762560646375,-42525.48737972,0.0002,5]
[393384173,1762560646387,-12591.55512295,0.0002,5]
[393384174,1762560646399,-4799.18155097,0.0002,5]
[393384175,1762560646412,-26198.06134364,0.0002,5]
[393384176,1762560646424,-1230.25093517,0.0002,5]
[393384182,1762560674745,-215.9259,0.0001581,2]
[393384185,1762560685728,1000.0,0.00039059,38]
[393384188,1762560750840,1000.0,0.00039059,38]
[393384189,1762560751127,1000.0,0.00039059,38]
[393384192,1762560814824,1000.0,0.00039059,38]
[393384193,1762560815157,1000.0,0.00039059,38]
[393384196,1762560879268,1000.0,0.00039059,38]
[393384197,1762560879567,1000.0,0.00039059,38]
[393384207,1762560943324,1000.0,0.00039061,38]
[393384208,1762560943771,1000.0,0.00039061,38]
[393384209,1762560972961,259.82,0.00025987,120]
[393384210,1762560973160,259.82,0.00028349,120]
[393384228,1762561007871,1000.0,0.00039061,38]
[393384229,1762561008202,1000.0,0.00039061,38]
[393384230,1762561036051,162.43792701,0.00013,2]
[393384233,1762561071579,1000.0,0.00039061,38]
[393384234,1762561071891,1000.0,0.00039061,38]
[393384239,1762561135687,1000.0,0.00039061,38]
[393384240,1762561136023,1000.0,0.00039061,38]
[393384241,1762561198850,1000.0,0.00039061,38]
[393384242,1762561199158,1000.0,0.00039061,38]
[393384243,1762561262453,1000.0,0.00039052,38]
[393384244,1762561262762,1000.0,0.00039052,38]
[393384245,1762561318464,2000.0,0.00039052,30]
[393384246,1762561325222,1000.0,0.00039052,38]
[393384247,1762561325583,1000.0,0.00039052,38]
[393384249,1762561571528,500.0,0.00039052,120]
[393384250,1762561571762,500.0,0.00039052,120]
[393384251,1762561571992,500.0,0.00039052,120]
[393384252,1762561572219,500.0,0.00039052,120]
[393384253,1762561572471,500.0,0.00039052,120]
[393384254,1762561572846,500.0,0.00039052,120]
[393384255,1762561573083,500.0,0.00039052,120]
[393384256,1762561573438,500.0,0.00039052,120]
[393384257,1762561573667,500.0,0.00039052,120]
[393384258,1762561573919,500.0,0.00039052,120]
[393384259,1762561574176,500.0,0.00039052,120]
[393384260,1762561574401,500.0,0.00039052,120]
[393384261,1762561574651,500.0,0.00039052,120]
[393384262,1762561574895,500.0,0.00039052,120]
[393384263,1762561575143,500.0,0.00039052,120]
[393384264,1762561575650,500.0,0.00039052,120]
[393384265,1762561575788,500.0,0.00039052,120]
[393384266,1762561575922,500.0,0.00039052,120]
[393384267,1762561576088,500.0,0.00039052,120]
[393384268,1762561576333,500.0,0.00039052,120]
[393384269,1762561576594,301.54037694,0.00039052,120]
[393384300,1762561831704,-180.76,0.00016673,2]
[393384303,1762561831716,-1200.0,0.00017098,2]
[393384305,1762561831726,-1000.0,0.00017099,2]
[393384306,1762561831735,-2500.0,0.00017099,2]
[393384307,1762561831746,-200.25321118,0.00017099,2]
[393384308,1762561831756,-300.0,0.00017196,2]
[393384309,1762561831767,-300.0,0.00017196,2]
[393384310,1762561831777,-1200.0,0.00017197,2]
[393384311,1762561831789,-300.0,0.00017197,2]
[393384312,1762561831798,-500.0,0.00017198,2]
[393384313,1762561831808,-154.12324818,0.00017198,2]
[393384314,1762561831818,-154.12324818,0.00017198,2]
[393384315,1762561831827,-500.0,0.00017198,2]
[393384316,1762561831839,-154.12324818,0.00017198,2]
[393384317,1762561831849,-500.0,0.00017198,2]
[393384318,1762561831858,-154.12324818,0.00017198,2]
[393384319,1762561831868,-500.0,0.00017198,2]
[393384320,1762561831877,-384.44882869,0.00017198,2]
[393384321,1762561831887,-500.0,0.00017198,2]
[393384322,1762561831896,-500.0,0.00017198,2]
[393384323,1762561831908,-500.0,0.00017198,2]
[393384324,1762561831918,-500.0,0.00017198,2]
[393384325,1762561831928,-272.26480062,0.00017198,2]
[393384326,1762561831938,-500.0,0.00017198,2]
[393384327,1762561831947,-454.57990708,0.00017198,2]
[393384328,1762561831958,-500.0,0.00017198,2]
[393384329,1762561831968,-500.0,0.00017198,2]
[393384330,1762561831977,-500.0,0.00017198,2]
[393384331,1762561831989,-500.0,0.00017198,2]
[393384332,1762561831999,-500.0,0.00017198,2]
[393384333,1762561832009,-500.0,0.00017198,2]
[393384335,1762561832018,-500.0,0.00017198,2]
[393384337,1762561832030,-500.0,0.00017198,2]
[393384339,1762561832039,-235.5609388,0.00017198,2]
[393384342,1762561832049,-500.0,0.00017198,2]
[393384344,1762561832059,-253.54398816,0.00017198,2]
[393384346,1762561832070,-637.28454875,0.00017198,2]
[393384348,1762561832080,-500.0,0.00017198,2]
[393384350,1762561832090,-32294.14424919,0.00017199,2]
[393384352,1762561832110,-432.28178068,0.00017199,2]
[393384353,1762561832122,-26990.81031988,0.00017199,2]
[393384355,1762561832133,-1122.51933016,0.00017199,2]
[393384356,1762561832144,-10441.60095213,0.00017199,2]
[393384357,1762561832161,-693.62418882,0.00017199,2]
[393384360,1762561832231,-2411.90587241,0.00017199,2]
[393384370,1762561837682,-1379.82481552,0.00017199,2]
[393384373,1762561837742,-281.55,0.00017199,2]
[393384380,1762561837876,-1169.82028622,0.00017199,2]
[393384381,1762561837888,-2090.0,0.00017199,2]
[393384382,1762561837913,-2875.5170958,0.00017199,2]
[393384383,1762561837925,-999.99999998,0.00017199,2]
[393384384,1762561837937,-5774.14524458,0.00017199,2]
[393384385,1762561837948,-1665.8,0.00017199,2]
[393384545,1762561839739,-5000.0,0.00017199,2]
[393384563,1762561839911,-1756.0,0.00017199,2]
[393384576,1762561842802,-623.74036925,0.00017199,2]
[393384577,1762561842815,-4547.0,0.00017199,2]
[393384578,1762561842862,-333.44283979,0.00017199,2]
[393384579,1762561842921,-469.06607036,0.00017199,2]
[393384580,1762561846252,-622.81754106,0.00017199,2]
[393384581,1762561846265,-808.13842488,0.00017199,2]
[393384582,1762561846278,-778.54826886,0.00017199,2]
[393384583,1762561846368,-933.0,0.00017199,2]
[393384589,1762562047479,166.14,8.518e-05,2]
[393384600,1762562063015,7271.1,0.00039053,120]
[393384601,1762562063254,7271.1,0.00039053,120]
[393384602,1762562064006,7271.1,0.00039053,120]
[393384603,1762562064115,7271.1,0.00039053,120]
[393384604,1762562064361,7271.1,0.00039053,120]
[393384605,1762562064644,7271.1,0.00039053,120]
[393384606,1762562064879,7271.1,0.00039053,120]
[393384607,1762562065144,7271.1,0.00039053,120]
[393384608,1762562065382,7271.1,0.00039053,120]
[393384609,1762562065626,7271.1,0.00039053,120]
[393384610,1762562065871,7271.1,0.00039053,120]
[393384611,1762562066130,7271.1,0.00039053,120]
[393384612,1762562066377,7271.1,0.00039053,120]
[393384613,1762562066647,7271.1,0.00039053,120]
[393384614,1762562066888,7271.1,0.00039053,120]
[393384615,1762562067138,7271.1,0.00039053,120]
[393384616,1762562067373,7271.1,0.00039053,120]
[393384617,1762562067635,7271.1,0.00039053,120]
[393384618,1762562067882,7271.1,0.00039053,120]
[393384619,1762562068129,7271.1,0.00039053,120]
[393384620,1762562068366,7271.1,0.00039053,120]
[393384621,1762562068691,500.0,0.00039053,120]
[393384622,1762562068999,7271.1,0.00039053,120]
[393384623,1762562069259,7271.1,0.00039053,120]
[393384624,1762562069293,500.0,0.00039053,120]
[393384625,1762562069522,7271.26021851,0.00039053,120]
[393384626,1762562069560,500.0,0.00039053,120]
[393384627,1762562069778,332.98531851,0.00039053,120]
[393384629,1762562424519,319.09490547,0.00039056,120]
[393384630,1762562572867,156.833,0.00039056,30]
[393384632,1762562696806,3170.43,0.00030137,120]
[393384633,1762562835520,-154.69851119,0.00016729,2]
[393384635,1762562861127,1000.0,0.00039056,38]
[393384636,1762562861497,1000.0,0.00039056,38]
[393384637,1762562866214,-200.0,0.0001676,2]
[393384638,1762562866242,-223.30043113,0.00016777,2]
[393384639,1762562924042,1000.0,0.00039056,38]
[393384640,1762562924360,1000.0,0.00039056,38]
[393384641,1762562986816,1000.0,0.00039056,38]
[393384642,1762562987108,1000.0,0.00039056,38]
[393384679,1762563032105,-250.0,0.00016886,2]
[393384681,1762563032119,-250.0,0.00017,2]
[393384683,1762563032132,-13814.67334152,0.00017,2]
[393384744,1762563037817,-15851.7872674,0.00017,2]
[393384745,1762563037871,-313.15444628,0.00017,2]
[393384746,1762563037884,-2197.63810758,0.00017,2]
[393384747,1762563037896,-11287.46947693,0.00017,2]
[393384748,1762563037924,-20960.59918484,0.00017,2]
[393384749,1762563037937,-4000.0,0.00017,2]
[393384750,1762563037985,-252.56577412,0.00017,2]
[393384751,1762563037998,-883.03321069,0.00017,2]
[393384752,1762563038010,-228366.50907734,0.00017,2]
[393384753,1762563038026,-7473.02121828,0.00017,2]
[393384754,1762563038048,-5672.38098888,0.00017,2]
[393384755,1762563038059,-16141.32000097,0.00017,2]
[393384756,1762563038071,-292.145,0.00017,2]
[393384757,1762563038084,-322.30574132,0.00017,2]
[393384767,1762563040034,-1344.89630737,0.00017,2]
[393384768,1762563040140,-47130.44764153,0.00017,2]
[393384769,1762563040152,-308.66741203,0.00017,2]
[393384770,1762563040193,-405.28705655,0.00017,2]
[393384771,1762563040204,-618.51915189,0.00017,2]
[393384772,1762563040215,-424.61229598,0.00017,2]
[393384800,1762563043304,-143696.62908418,0.00017,2]
[393384801,1762563043316,-310.2786,0.00017,2]
[393384803,1762563046140,-5710.49959998,0.00017,2]
[393384804,1762563046192,-3090.0,0.00017,2]
[393384805,1762563046300,-426.7375,0.00017,2]
[393384806,1762563046312,-288.20000639,0.00017,2]
[393384807,1762563049683,1000.0,0.00039056,38]
[393384808,1762563049993,936.31,0.00039056,38]
[393384810,1762563244574,211.23722255,0.00039056,120]
[393384811,1762563322907,194.40582657,0.00039056,30]
[393384812,1762563351084,1000.0,0.00039056,56]
[393384813,1762563351565,1000.0,0.00039056,56]
[393384814,1762563354652,649.40787663,0.00039056,120]
[393384815,1762563582110,356.9,0.00013699,2]
[393384817,1762563676811,-166.66,0.00015934,2]
[393384818,1762563676843,-50.98402199,0.00016324,2]
[393384819,1762563691499,-144.01597801,0.00016324,2]
[393384820,1762563747713,257.34,0.00024797,120]
[393384821,1762563765524,-187.11921967,0.00016448,2]
[393384822,1762563769388,-277.57161146,0.00016448,2]
[393384823,1762563775805,-673.64916887,0.00016448,2]
[393384824,1762563777874,-300.0,0.00016448,2]
[393384825,1762563781423,-151.848,0.00016448,2]
[393384826,1762563784343,-321.12837123,0.00016448,2]
[393384827,1762563806983,861.64895509,0.00039055,120]
[393384828,1762563840527,-202.234572,0.00016448,2]
[393384829,1762563840557,-67.80680986,0.00016531,2]
[393384830,1762563855529,-168.55649268,0.00016531,2]
[393384831,1762563870629,-20.97669746,0.00016531,2]
[393384832,1762563870654,-193.37747889,0.00016581,2]
[393384833,1762563900535,-1.62252111,0.00016581,2]
[393384834,1762563900559,-213.50625122,0.0001663,2]
[393384835,1762563930549,-227.77829912,0.0001663,2]
[393384836,1762564005510,-200.0,0.00016488,2]
[393384837,1762564005534,-58.71544966,0.0001663,2]
[393384838,1762564005557,-13.50625122,0.0001675,2]
[393384839,1762564035521,-151.54997652,0.0001675,2]
[393384840,1762564035543,-71.8488542,0.00016799,3]
[393384841,1762564038292,-165.60028277,0.00016799,3]
[393384845,1762564232039,-893.85465609,0.00016716,2]
[393384846,1762564232049,-221.84453216,0.00016734,2]
[393384847,1762564232059,-761.55086303,0.00016799,3]
[393384848,1762564232070,-383.50768,0.0001683,2]
[393384849,1762564232079,-383.50769,0.0001683,2]
[393384850,1762564232088,-383.50769,0.0001685,2]
[393384851,1762564232098,-166.66,0.00016969,2]
[393384852,1762564232107,-2185.57,0.00016986,2]
[393384853,1762564232118,-625.0443216,0.00016996,2]
[393384854,1762564232127,-1200.0,0.00016998,2]
[393384855,1762564232139,-1200.0,0.00016999,2]
[393384856,1762564232149,-150.0,0.00016999,2]
[393384857,1762564232158,-300.0,0.00016999,2]
[393384858,1762564232168,-300.0,0.00016999,2]
[393384859,1762564232178,-151.0,0.00017,2]
[393384860,1762564232188,-151.0,0.00017,2]
[393384861,1762564232197,-151.0,0.00017,2]
[393384862,1762564232207,-151.0,0.00017,2]
[393384863,1762564232217,-151.0,0.00017,2]
[393384864,1762564232226,-151.0,0.00017,2]
[393384865,1762564232236,-151.0,0.00017,2]
[393384866,1762564232246,-151.0,0.00017,2]
[393384867,1762564232255,-151.0,0.00017,2]
[393384868,1762564232264,-151.0,0.00017,2]
[393384869,1762564232274,-151.0,0.00017,2]
[393384870,1762564232283,-151.0,0.00017,2]
[393384871,1762564232292,-151.0,0.00017,2]
[393384872,1762564232302,-151.0,0.00017,2]
[393384873,1762564232312,-151.0,0.00017,2]
[393384874,1762564232321,-151.0,0.00017,2]
[393384875,1762564232331,-198.12130163,0.00017,2]
[393384876,1762564232340,-320681.93843405,0.00017,2]
[393384877,1762564232352,-47881.06766877,0.00017,2]
[393384878,1762564232363,-39373.64607191,0.00017,2]
[393384881,1762564232375,-54055.65766845,0.00017,2]
[393384884,1762564232403,-4212.73717048,0.00017,2]